Cogmind - Beta 16.1 @@@ ROGUE MODE // 2026.02.27 @ 10:47:09 Player: Zish Result: Self-destructed Performance ------------- Evolutions (2) 1000 Regions Visited (7) 1400 Robots Destroyed (64) 320 Value Destroyed (1520) 1520 Prototype IDs (1) 20 Alien Tech Used (0) 0 Bonus (209) 209 TOTAL SCORE: 4469 Bonus ------- Follower Combat Kills 225 Friendly Fire -16 Cogmind --------- Core Integrity 473/550 Matter 40/300 Energy 100/100 System Corruption 4% Temperature Cool (3) Movement Treading (160) Location -8/Materials Parts ------- > --- POWER (1) -------- (None) > --- PROPULSION (3) --- Light Treads Light Treads Light Treads > --- UTILITY (5) ------ Large Storage Unit > --- WEAPON (2) ------- Minigun Enhanced Autogun > --- INVENTORY (15) --- Light Treads Faulty Experimental Sensor Array Hacking Suite Hacking Suite Field Laser Light Assault Rifle Datajack Peak State ------------ > --- POWER ------------ Light Ion Engine > --- PROPULSION ------- Light Treads Light Treads Light Treads > --- UTILITY ---------- Large Storage Unit Visual Processing Unit Improved Sensor Array Light Armor Plating > --- WEAPON ----------- Minigun Enhanced Autogun > --- INVENTORY -------- Light Treads Experimental Sensor Array Hacking Suite Hacking Suite Field Laser Light Assault Rifle Datajack [Rating: 20] Favorites ----------- Power Light Nuclear Core Engine Light Ion Engine Power Core Light Nuclear Core Propulsion Light Treads Treads Light Treads Utility Improved Sensor Array Device Improved Sensor Array Storage Large Storage Unit Processor Visual Processing Unit Protection Propulsion Shielding Weapon Shock Rifle Energy Gun Shock Rifle Ballistic Gun Light Assault Rifle Launcher Grenade Launcher Build | -11 -10 -10 -9 -9 -9 -8 -8 ------- Run | Yrd Mat Min Mat Min Exi Min Mat Slots Evolved 4 | . . . 2 . . . 2 Power . | . . . . . . . . Propulsion 1 | . . . 1 . . . . Utility 3 | . . . 1 . . . 2 Weapon . | . . . . . . . . Parts Attached 30 | 6 2 . 9 5 . 2 6 Power 6 | 1 . . 3 1 . . 1 Engine 4 | 1 . . 2 . . . 1 Core 2 | . . . 1 1 . . . Reactor . | . . . . . . . . Propulsion 8 | 2 . . 1 3 . . 2 Treads 8 | 2 . . 1 3 . . 2 Leg . | . . . . . . . . Wheel . | . . . . . . . . Hover . | . . . . . . . . Flight . | . . . . . . . . Utility 7 | 1 2 . 3 . . . 1 Device 1 | . . . 1 . . . . Storage 3 | 1 1 . 1 . . . . Processor 1 | . . . 1 . . . . Hackware . | . . . . . . . . Protection 2 | . 1 . . . . . 1 Artifact . | . . . . . . . . Weapon 9 | 2 . . 2 1 . 2 2 Energy Gun 3 | 1 . . 2 . . . . Energy Cannon . | . . . . . . . . Ballistic Gun 4 | 1 . . . . . 1 2 Ballistic Cannon . | . . . . . . . . Launcher 2 | . . . . 1 . 1 . Special Weapon . | . . . . . . . . Impact Weapon . | . . . . . . . . Slashing Weapon . | . . . . . . . . Piercing Weapon . | . . . . . . . . Special Melee Weapon . | . . . . . . . . Unidentified Prototypes 1 | . . . . . . . 1 Parts Lost 21 | . . . 6 5 . 2 8 Power 6 | . . . 3 1 . . 2 Propulsion 5 | . . . . 3 . . 2 Utility 4 | . . . 1 . . . 3 Weapon 6 | . . . 2 1 . 2 1 Highest Loss Streak 5 | . . . 2 5 . 2 4 To Critical Strikes . | . . . . . . . . Average Backups 6 | . 7 10 9 6 6 5 5 Power . | . 1 1 1 1 1 1 . Propulsion 2 | . 4 7 4 1 1 1 . Utility 2 | . . 1 1 2 3 3 3 Weapon . | . 1 1 2 1 1 . 1 Tool/Special . | . . . . . . . . Unused Backups 10 | . 1 . 2 2 . . 5 Power . | . . . . . . . . Propulsion 3 | . . . 2 . . . 1 Utility 3 | . . . . . . . 3 Weapon 3 | . 1 . . 2 . . . Tool/Special 1 | . . . . . . . 1 Average Slot Usage (%) 97 | . 98 100 87 99 100 99 75 Engine 3 | . 14 14 7 1 . . 5 Core 7 | . . . 2 9 11 11 2 Treads 30 | . 28 28 25 32 33 33 22 Device 9 | . . . 10 11 11 11 8 Storage 11 | . 14 14 11 11 11 11 9 Processor 8 | . . . 2 11 11 11 9 Protection 2 | . 12 14 5 . . . 1 Energy Gun 8 | . 14 14 15 12 11 3 . Ballistic Gun 6 | . 14 14 6 . . 7 14 Launcher 7 | . . . . 9 11 11 2 Peak Build Rating 20 | 6 8 8 15 17 17 17 20 Average Rating 14 | 4 7 8 12 16 17 16 17 On Entrance 10 | . 6 8 8 15 17 17 16 Avg Prop Armor Cover (%) . | . . . . . . . . Naked Turns . | . . . . . . . . Heaviest Build 33 | 12 18 18 31 32 32 32 33 Greatest Support 60 | 40 40 40 60 60 60 60 60 Greatest Overweight (x) . | . . . . . . . . Average Overweight (x) . | . . . . . . . . Largest Inventory Capacity 15 | 8 10 10 15 15 15 15 15 Average Capacity 13 | 7 9 10 13 15 15 15 15 Most Carried 11 | 2 10 10 11 10 6 6 7 Average Carried 6 | . 7 10 9 6 6 5 5 Final Capacity 15 | 8 10 10 15 15 15 15 15 Final Carried 10 | 2 10 10 9 6 6 5 7 Class Distribution -------------------- 100% | Mutant Dominant Class ---------------- Mutant | -10/Materials Mutant | -10/Mines Mutant | -9/Materials Mutant | -9/Mines Mutant | -9/Exiles Mutant | -8/Mines Mutant | -8/Materials Resources | -11 -10 -10 -9 -9 -9 -8 -8 ----------- Run | Yrd Mat Min Mat Min Exi Min Mat Matter Collected 849 | 260 74 15 127 80 . 104 189 Remotely . | . . . . . . . . Salvage Created 1927 | . 192 63 681 310 . 261 420 Parts 119 | . 18 9 39 15 . 18 20 Haulers Intercepted 2 | . 1 . 1 . . . . Recyclers Shooed 1 | . . 1 . . . . . Parts Field Recycled . | . . . . . . . . Retrieved Matter . | . . . . . . . . Parts Self-Destructed . | . . . . . . . . Prevented . | . . . . . . . . Parts Restored . | . . . . . . . . Kills | -11 -10 -10 -9 -9 -9 -8 -8 ------- Run | Yrd Mat Min Mat Min Exi Min Mat Combat Hostiles Destroyed 46 | . 5 3 15 3 . 10 10 Guns 31 | . 5 3 15 2 . 1 5 AOE 15 | . . . . 1 . 9 5 Classes Destroyed 10 | . 4 1 3 1 . . 1 Worker 5 | . . . 1 1 . 1 2 Tunneler 3 | . . 1 1 1 . . . Hauler 2 | . 1 . 1 . . . . Recycler 4 | . . . 2 2 . . . Operator 4 | . 1 . 2 . . . 1 Swarmer 19 | . 3 3 9 . . 4 . Grunt 22 | . 2 . 5 2 . 5 8 Duelist 2 | . . . . 1 . 1 . Sentry 2 | . . . 1 . . . 1 Hunter 1 | . . . . . . . 1 Best Kill Streak 7 | . 5 3 7 3 . 5 7 Combat Bots Only 5 | . 5 3 4 3 . 4 5 Max Kills in Single Turn 3 | . 1 2 2 1 . 3 2 Gunslinging 1 | . . 1 1 . . . . Exploded 3 | . . . . 1 . 3 1 Melee . | . . . . . . . . Uniques/NPCs Destroyed . | . . . . . . . . Combat | -11 -10 -10 -9 -9 -9 -8 -8 -------- Run | Yrd Mat Min Mat Min Exi Min Mat Hostile Shots Fired 229 | . 33 4 81 13 . 22 76 Missed 68 | . 8 2 20 4 . 8 26 Hits 161 | . 25 2 61 9 . 14 50 Melee 10 | . . . . 6 . . 4 Projectile 151 | . 25 2 61 3 . 14 46 Critical Strikes 6 | . . . 2 1 . . 3 Damage Taken 2222 | . 239 18 650 298 . 223 794 Core 297 | . 64 . 88 40 . 28 77 Absorbed by Shields . | . . . . . . . . Redirected to Shielding 50 | . 22 3 25 . . . . Core Remaining (%) 78 | 100 . 74 . . . 61 . Volleys Fired 152 | . 19 4 46 13 . 17 53 Largest 2 | . 2 2 2 2 . 2 2 Hottest 100 | . 70 70 100 100 . 80 55 Shots Fired 271 | . 38 8 91 26 . 27 81 Gun 245 | . 38 8 91 22 . 14 72 Cannon . | . . . . . . . . Launcher 26 | . . . . 4 . 13 9 Special . | . . . . . . . . Kinetic 115 | . 19 4 20 . . . 72 Thermal 78 | . 19 4 46 9 . . . Explosive 26 | . . . . 4 . 13 9 Electromagnetic 52 | . . . 25 13 . 14 . Robot Hit Streak 13 | . 11 7 8 9 . 7 13 Robot Miss Streak 4 | . 3 . 4 3 . 2 3 Penetration Max . | . . . . . . . . Secondary Targets 5 | . . 1 3 . . . 1 Max Gunslinging Chain 1 | . . 1 1 . . . 1 Shots Hit Robots 187 | . 26 7 61 18 . 18 57 Core Hits 103 | . 11 4 31 12 . 19 26 Critical Kills . | . . . . . . . . Critical Parts Destroyed 1 | . . . . . . . 1 Critical Strikes 5 | . 1 . 1 2 . . 1 Burn 3 | . 1 . 1 1 . . . Destroy 1 | . . . . . . . 1 Corrupt 1 | . . . . 1 . . . Melee Attacks . | . . . . . . . . Impact . | . . . . . . . . Slashing . | . . . . . . . . Piercing . | . . . . . . . . Sneak Attacks . | . . . . . . . . Combat Hostiles . | . . . . . . . . Follow-up Attacks . | . . . . . . . . Damage Inflicted 4658 | . 316 103 950 490 . 1016 1783 Guns 2569 | . 316 103 881 265 . 162 842 Cannons . | . . . . . . . . Explosions 2089 | . . . 69 225 . 854 941 Melee . | . . . . . . . . Ramming . | . . . . . . . . Kinetic 1244 | . 142 54 206 . . . 842 Thermal 958 | . 174 49 421 174 . 140 . Explosive 1809 | . . . . 154 . 714 941 Electromagnetic 647 | . . . 323 162 . 162 . Impact . | . . . . . . . . Slashing . | . . . . . . . . Piercing . | . . . . . . . . Highest Corruption 4 | . . . . . . . 4 Average Corruption 1 | . . . . . . . 1 Corruption Purged . | . . . . . . . . Corruption Blocked . | . . . . . . . . Overload Shots . | . . . . . . . . Overflow Damage 48 | . . . . . . 47 1 Projectiles . | . . . . . . . . Explosions 48 | . . . . . . 47 1 Melee . | . . . . . . . . Knockbacks . | . . . . . . . . Impact . | . . . . . . . . Kinetic . | . . . . . . . . Secondary . | . . . . . . . . Self-Inflicted Damage 103 | . . . . 76 . 27 . Shots 5 | . . . . 2 . 3 . Rammed . | . . . . . . . . Targets Rammed . | . . . . . . . . Kicked . | . . . . . . . . Crushed . | . . . . . . . . Highest Temperature 262 | . 156 18 262 150 . 144 42 Average Temperature 50 | . 52 10 62 62 . 61 12 Received Heat Transfer 675 | . 60 . 174 18 . 81 342 Siege Activations . | . . . . . . . . Martial Activations . | . . . . . . . . Shielding Activations . | . . . . . . . . Robots Disrupted . | . . . . . . . . Combat Hostiles . | . . . . . . . . Robots Corrupted . | . . . . . . . . Combat Hostiles . | . . . . . . . . Parts Fried . | . . . . . . . . Impact Corruptions . | . . . . . . . . Robots Melted . | . . . . . . . . Combat Hostiles . | . . . . . . . . Parts Melted 2 | . . . 1 1 . . . Heat Transferred 2620 | . 592 148 1210 520 . 150 . Parts Sabotaged . | . . . . . . . . Parts Stolen . | . . . . . . . . Parts Stripped . | . . . . . . . . Power Chain Reactions 3 | . . . 1 1 . 1 . Alert | -11 -10 -10 -9 -9 -9 -8 -8 ------- Run | Yrd Mat Min Mat Min Exi Min Mat Maximum Alert Level 1 | . . . 1 . . . 1 Low Security (%) 89 | 100 100 100 51 100 . 100 23 Level 1 10 | . . . 48 . . . 76 Level 2 . | . . . . . . . . Level 3 . | . . . . . . . . Level 4 . | . . . . . . . . Level 5 . | . . . . . . . . High Security . | . . . . . . . . Max Security . | . . . . . . . . Peak Influence 396 | . 100 89 396 151 . 157 272 Initial 151 | . . 19 . 151 . . . Average 53 | . 27 20 189 35 . 23 186 Influence Increases 1776 | . 148 75 672 124 . 315 442 Destroy 0b10 Robot/C 1100 | . 100 60 480 60 . 200 200 Destroy 0b10 Robot/NC 90 | . 10 5 35 20 . 5 15 Destroy Leader 224 | . 22 10 102 10 . 30 50 Allied During Kill 21 | . . . 21 . . . . Successful Hack 21 | . 16 . . 5 . . . Disable Machine 75 | . . . . . . 15 60 Destroy Structure 155 | . . . 4 29 . 65 57 Partial Spotted 15 | . . . 15 . . . . Lose Combat Pursuer 75 | . . . 15 . . . 60 Influence Decreases 1564 | . 98 125 284 512 . 315 230 Entered New Map 268 | . . 31 . 237 . . . Time Decay 1066 | . 98 94 194 225 . 305 150 Lost Part 190 | . . . 50 50 . 10 80 Lost Ally 40 | . . . 40 . . . . Squads Dispatched 5 | . 1 . 2 . . . 2 Investigation . | . . . . . . . . Extermination . | . . . . . . . . Reinforcement 5 | . 1 . 2 . . . 2 Assault . | . . . . . . . . Garrison . | . . . . . . . . Intercept . | . . . . . . . . Searches Triggered . | . . . . . . . . Construction Impeded 1 | . . . . . . . 1 Haulers Reinforced . | . . . . . . . . Active Scanning Responses . | . . . . . . . . Cargo Convoy Interrupts . | . . . . . . . . Stealth | -11 -10 -10 -9 -9 -9 -8 -8 --------- Run | Yrd Mat Min Mat Min Exi Min Mat Distress Signals 5 | . . . 3 . . . 2 Communications Jammed . | . . . . . . . . Distress Signals . | . . . . . . . . Times Spotted 75 | . 11 2 30 3 . 10 19 Peak Tracking Total 8 | . 6 . 6 3 . 4 8 Tactical Retreats 2 | . . . 1 . . . 1 Traps | -11 -10 -10 -9 -9 -9 -8 -8 ------- Run | Yrd Mat Min Mat Min Exi Min Mat Traps Triggered . | . . . . . . . . Indirectly . | . . . . . . . . Trap Hack Attempts . | . . . . . . . . Triggered . | . . . . . . . . Disarmed . | . . . . . . . . Reprogrammed . | . . . . . . . . Reused . | . . . . . . . . Traps Extracted . | . . . . . . . . Installed . | . . . . . . . . Triggered . | . . . . . . . . Machines | -11 -10 -10 -9 -9 -9 -8 -8 ---------- Run | Yrd Mat Min Mat Min Exi Min Mat Machines Disabled 5 | . . . . . . 1 4 Max in Single Turn 1 | . . . . . . 1 1 Machines Repaired . | . . . . . . . . Machines Dismantled . | . . . . . . . . Machines Sabotaged . | . . . . . . . . Overloaded Fab Kills . | . . . . . . . . Hacking | -11 -10 -10 -9 -9 -9 -8 -8 --------- Run | Yrd Mat Min Mat Min Exi Min Mat Machines Accessed 4 | . 1 . 1 1 . . 1 Terminals 4 | . 1 . 1 1 . . 1 Fabricators . | . . . . . . . . Repair Stations . | . . . . . . . . Recycling Units . | . . . . . . . . Scanalyzers . | . . . . . . . . Garrison Access . | . . . . . . . . Total Hacks 8 | . 1 . 3 1 . . 3 Successful 4 | . 1 . 1 1 . . 1 Failed 4 | . . . 2 . . . 2 Catastrophic . | . . . . . . . . Database Lockouts . | . . . . . . . . Manual 7 | . 1 . 3 . . . 3 Terminals 8 | . 1 . 3 1 . . 3 Fabricators . | . . . . . . . . Repair Stations . | . . . . . . . . Recycling Units . | . . . . . . . . Scanalyzers . | . . . . . . . . Garrison Access . | . . . . . . . . Terminal Hacks 1 | . . . . 1 . . . Zone Layout 1 | . . . . 1 . . . Fabricator Hacks . | . . . . . . . . Repair Station Hacks . | . . . . . . . . Recycling Unit Hacks . | . . . . . . . . Scanalyzer . | . . . . . . . . Garrison Access Hacks . | . . . . . . . . Unauthorized Hacks 3 | . 1 . 1 . . . 1 Terminals 3 | . 1 . 1 . . . 1 Operators 3 | . 1 . 1 . . . 1 Fabricators . | . . . . . . . . Repair Stations . | . . . . . . . . Recycling Units . | . . . . . . . . Scanalyzers . | . . . . . . . . Garrison Access . | . . . . . . . . Data Cores Recovered . | . . . . . . . . Used . | . . . . . . . . Hacking Detections 2 | . . . 1 . . . 1 Full Trace Events . | . . . . . . . . Feedback Events . | . . . . . . . . Feedback Blocked . | . . . . . . . . Robot Schematics Acquired . | . . . . . . . . Robots Built . | . . . . . . . . Authchips . | . . . . . . . . Time . | . . . . . . . . Total Robot Build Rating . | . . . . . . . . Part Schematics Acquired . | . . . . . . . . Parts Built . | . . . . . . . . Authchips . | . . . . . . . . Time . | . . . . . . . . Total Part Build Rating . | . . . . . . . . Part Studies Acquired . | . . . . . . . . Parts Repaired . | . . . . . . . . Time . | . . . . . . . . Parts Recycled . | . . . . . . . . Recycled Matter . | . . . . . . . . Retrieved Matter . | . . . . . . . . Retrieved Components . | . . . . . . . . Parts Scanalyzed . | . . . . . . . . Part Schematics Acquired . | . . . . . . . . Parts Damaged . | . . . . . . . . Bothacking | -11 -10 -10 -9 -9 -9 -8 -8 ------------ Run | Yrd Mat Min Mat Min Exi Min Mat Used RIF Installer . | . . . . . . . . Robots Hacked . | . . . . . . . . Non-combat . | . . . . . . . . Combat . | . . . . . . . . Robot Hacks Applied . | . . . . . . . . Relay Couplers Released . | . . . . . . . . Fabnet Peak Effective % . | . . . . . . . . Robots Rewired . | . . . . . . . . Allies Hacked . | . . . . . . . . Hacks Repelled . | . . . . . . . . Allies | -11 -10 -10 -9 -9 -9 -8 -8 -------- Run | Yrd Mat Min Mat Min Exi Min Mat Total Allies 2 | . . 2 . . . . . Largest Group 2 | . . 2 2 . . . . Highest-Rated Group 50 | . . 50 50 . . . . Highest-Rated Ally 31 | . . 31 31 . . . . Total Orders . | . . . . . . . . Ally Attacks 27 | . . . 27 . . . . Total Damage 435 | . . . 435 . . . . Kills 9 | . . . 9 . . . . Allies Corrupted . | . . . . . . . . Allies Melted . | . . . . . . . . Intel | -11 -10 -10 -9 -9 -9 -8 -8 ------- Run | Yrd Mat Min Mat Min Exi Min Mat Active Infowar (turns) 4419 | . . . 420 1055 597 2003 344 Optics 4099 | . . . 100 1055 597 2003 344 Sensors 4405 | . . . 420 1055 597 2003 330 Robot Analysis Total . | . . . . . . . . Derelict Logs Recovered 2 | . . 1 . 1 . . . Drone Launches . | . . . . . . . . Drone Recoveries . | . . . . . . . . Exploration | -11 -10 -10 -9 -9 -9 -8 -8 ------------- Run | Yrd Mat Min Mat Min Exi Min Mat Turns Passed 5313 | 71 377 422 443 1055 597 2003 345 Spaces Moved 2482 | 41 190 257 159 614 374 725 122 Core 4 | 4 . . . . . . . Treads 2478 | 37 190 257 159 614 374 725 122 Legs . | . . . . . . . . Wheels . | . . . . . . . . Hover . | . . . . . . . . Flight . | . . . . . . . . Fastest Speed 50 | 50 160 160 160 160 160 160 160 Average Speed 159 | 149 160 160 160 160 160 160 160 Slowest Speed 160 | 160 160 160 160 160 160 160 160 Overloaded Moves . | . . . . . . . . Propulsion Burnouts . | . . . . . . . . Robots Hopped . | . . . . . . . . Potential Cave-ins . | . . . . . . . . Cave-ins Triggered . | . . . . . . . . Exploration Rate (%) 49 | 4 30 47 21 92 89 98 15 Regions Visited 7 Branch Regions 4 Pre-discovered Areas 1 | . . . . 1 . . . Known Exits Taken . | . . . . . . . . Unknown Exits Taken 7 | 1 1 1 1 1 1 1 . Scrap Searched 6 | . . . . 4 . 2 . Spaces Dug . | . . . . . . . . Terrain Destroyed 184 | . . . 4 29 . 84 67 Melee . | . . . . . . . . Projectile . | . . . . . . . . AOE 184 | . . . 4 29 . 84 67 Terrain Rammed . | . . . . . . . . Walls Destroyed . | . . . . . . . . Machines Disabled . | . . . . . . . . Actions | -11 -10 -10 -9 -9 -9 -8 -8 --------- Run | Yrd Mat Min Mat Min Exi Min Mat Total 3573 | 48 226 260 256 662 373 1541 207 Wait 882 | . 3 . 35 25 . 798 21 Move 2475 | 40 189 256 158 613 373 724 122 Hop . | . . . . . . . . Pick Up 24 | 2 10 . 5 4 . . 3 Fast Attach 15 | 6 1 . 4 . . 1 3 Attach 13 | . . . 4 5 . 1 3 Detach 1 | . . . . . . . 1 Swap 3 | . 1 . 1 . . . 1 Drop 8 | . 3 . 3 2 . . . Fire 152 | . 19 4 46 13 . 17 53 Melee . | . . . . . . . . Ram . | . . . . . . . . Kick . | . . . . . . . . Crush . | . . . . . . . . Escape Stasis . | . . . . . . . . Rewire . | . . . . . . . . Trap . | . . . . . . . . Miscellaneous . | . . . . . . . . Route ------- -11/Scrapyard -10/Materials -10/Mines -9/Materials -9/Mines (discovered 3 exits: *Mat x2 / *Exi) -9/Exiles -8/Mines (discovered 2 exits: *Mat x2) -8/Materials History --------- Turn | Location | Event 22 | -11/Scrapyard | Discovered new exit (range 15) 72 | -11/Scrapyard | Entered Materials 304 | -10/Materials | Build established: Mutant 398 | -10/Materials | Discovered new exit (range 16) 449 | -10/Materials | Entered Mines 505 | -10/Mines | Learned Materials garrison access intel 511 | -10/Mines | Discovered new exit (range 15) 871 | -10/Mines | Entered Materials 871 | -9/Materials | Accompanied by 2 allies 871 | -9/Materials | Evolved 2 slots: Propulsion x1, Utility x1 876 | -9/Materials | Led the pair of lost Derelicts to an unsafe place 1102 | -9/Materials | Discovered new exit (range 11) 1314 | -9/Materials | Entered Mines 1431 | -9/Mines | Discovered new exit (range 6) 1500 | -9/Mines | Lost 5 parts (1p3n1w) 1545 | -9/Mines | Discovered new exit (range 16) 1771 | -9/Mines | Found a damaged Exp. Sensor Array with a note attached 1774 | -9/Mines | Found Prototype Device 1887 | -9/Mines | Learned location of Zion (-6) 2361 | -9/Mines | Deemed a non-threat by the Exiles lab entrance 2363 | -9/Mines | Discovered new exit (range 5) 2369 | -9/Mines | Entered Exiles 2369 | -9/Exiles | Found Exiles lab abandoned 2947 | -9/Exiles | Discovered new exit (range 14) 2966 | -9/Exiles | Entered Mines 3013 | -8/Mines | Discovered new exit (range 5) 3432 | -8/Mines | Discovered new exit (range 6) 4969 | -8/Mines | Entered Materials 4969 | -8/Materials | Evolved 2 slots: Utility x2 4970 | -8/Materials | Loaded intel: 1 garrison access location 5117 | -8/Materials | Lost 3 parts (1p1n1w) 5314 | -8/Materials | Self-destructed Last Messages --------------- 05283_ Acquired Field Laser. 05292_ R-06 Scavenger inserts Hover Unit into recycling unit. 05293_ Recycling unit begins recycling process. 05295_ R-06 Scavenger inserts Lgt. Ion Engine into recycling unit. 05298_ R-06 Scavenger inserts Imp. Ion Engine into recycling unit. 05299_ Recycling unit begins recycling process. 05299_ Imp. Sensor Array destroyed. 05299_ System corrupted by crushing effect (+1). 05302_ R-06 Scavenger inserts Heat Sink into recycling unit. 05307_ Lgt. Ion Engine destroyed. 05307_ System corrupted by crushing effect (+1). 05310_ W-25 Informer sends out distress signal. 05313_ Visual Processing Unit destroyed. 05313_ Lgt. Armor Plating destroyed. 05313_ System corrupted by crushing effect (+1). Map ----- +----------------------------------------------------+ | ???????# # !#?????? | | ???????# %/% #?????? | | ???????# # """ #?????? | | ??????#####+######/### #### #??????????????? | | ??????# "T" # """ ###+###### #??????????????? | | ??????# # "T" # / + ??????????? | | ??????# """ # # ###+####???????????? | | ??????# """ # * # # ??????????????? | | ??????# """ # # # #????????????? | | ??????# # = # # #????????????? | | ??????######## " " # # #????????????? | | ?????????????# """ # # = #????????????? | | ?????????????# """" #% # ?#????????????? | | ?????????????# # # ???????????????? | | ?????????????# #+######## ###??????????????? | | ?????????????#####/### ## #####????????????????? | | ???????????????### #?# #?##?#????????????????????? | | ???????????????#"" ### ##????????????????????????? | | ???????????????#"T #############????????????? | | ???????????????#"" ???????????? | | ???????????????### ##????????????????? | | ?????????# ### #?????????????????? | | ?????????+ #?????????????????? | | ?????????# ###### ######## #?????????????????? | | ?????????# ?????????# #?######w####??????????????? | | ??????????????????### ###@ g + #??????? | | ??????????????????# #b""" g####??????????????? | | ??????????????##### # "Y" r#?????????????????? | | ?????????????+ + g #?????????????????? | | ?????????????###### # #?????????????????? | | ??????????????????# # #?????????????????? | | ??????????????????###+##########?????????????????? | | ?????????????????????????????????????????????????? | | ?????????????????????????????????????????????????? | | ?????????????????????????????????????????????????? | | ?????????????????????????????????????????????????? | | ?????????????????????????????????????????????????? | | ?????????????????????????????????????????????????? | | ?????????????????????????????????????????????????? | | ?????????????????????????????????????????????????? | | ?????????????????????????????????????????????????? | | ?????????????????????????????????????????????????? | | ?????????????????????????????????????????????????? | | ?????????????????????????????????????????????????? | | ?????????????????????????????????????????????????? | | ?????????????????????????????????????????????????? | | ?????????????????????????????????????????????????? | | ?????????????????????????????????????????????????? | | ?????????????????????????????????????????????????? | | ?????????????????????????????????????????????????? | +----------------------------------------------------+ Best States ------------- Heat Dissipation 31 Energy Generation 14 Energy Capacity 160 Matter Stores 300 Matter Capacity 300 Sight Range 18 Robot Scan Range 15 Terrain Scan Density 10 Armor Coverage 150 Propulsion Shielding 33 Evasion (%) 40 Recoil Reduction 3 Item Schematics ----------------- None Robot Schematics ------------------ None Fabricated ------------ Nothing Repaired ---------- Nothing Studied --------- None Alien Tech Used ----------------- None Achievements -------------- None Challenges ------------ None Game ------ Seed SeismicAerolevExtrapolator Manual? 0 Play Time 00:22:17 Cumulative 32.0 hours Start 2026.02.27 @ 10:26:54 End 2026.02.27 @ 10:47:09 Sessions 1 Manual Loads 0 Difficulty Rogue Special Mode None Game No. 88 Rogue 88 Adventurer 0 Explorer 0 Win Type - Total 0 Types 0/0/0/0/0/0/0/0/0/0 Lore% 18 Gallery% 28 Achievement% 22 Wizard Run 0 Options --------- Layout 1 ASCII 0 Keyboard 1 Movement Vi Keybinds 0 Fullscreen 1 Font 24/Smallcaps Map View 50x35 Zoom Use 0% Tactical HUD 1 Map Filters NONE Filters NONE Steam 1 RUN: 570a3b69-3a11-4abf-823f-38eec63aa2e5